[Event "Titled Tuesday Blitz May 4 2021"]
[White "Valdes Romero, Leonardo"]
[Black "Chernomordik, Pavel"]
[WhiteFideId "6500331"]
[BlackFideId "2804530"]
[WhiteElo "2497"]
[BlackElo "2299"]
[Result "1-0"]
[Round "03"]
[TimeControl "180+1"]
[Date "2021.05.04"]
[WhiteClock "0:00:27"]
[BlackClock "0:00:05"]

1. e4 {[%clk 0:03:00]}  g6 {[%clk 0:02:59]} 2. d3 {[%clk 0:02:57]}  Bg7 {[%clk 0:02:58]} 3. g3 {[%clk 0:02:58]}  h5 {[%clk 0:02:57]} 4. Nf3 {[%clk 0:02:56]}  d6 {[%clk 0:02:56]} 5. Bg2 {[%clk 0:02:56]}  c5 {[%clk 0:02:56]} 6. a4 {[%clk 0:02:53]}  Nc6 {[%clk 0:02:55]} 7. O-O {[%clk 0:02:52]}  Bg4 {[%clk 0:02:52]} 8. h3 {[%clk 0:02:51]}  Bd7 {[%clk 0:02:47]} 9. c3 {[%clk 0:02:44]}  Qc8 {[%clk 0:02:46]} 10. Kh2 {[%clk 0:02:42]}  e5 {[%clk 0:02:38]} 11. Na3 {[%clk 0:02:39]}  a6 {[%clk 0:02:32]} 12. Nc4 {[%clk 0:02:37]}  Qc7 {[%clk 0:02:32]} 13. a5 {[%clk 0:02:37]}  Nge7 {[%clk 0:02:21]} 14. Bg5 {[%clk 0:02:35]}  f6 {[%clk 0:02:20]} 15. Bd2 {[%clk 0:02:33]}  g5 {[%clk 0:02:20]} 16. Qb3 {[%clk 0:02:21]}  O-O-O {[%clk 0:02:15]} 17. Nb6+ {[%clk 0:02:07]}  Kb8 {[%clk 0:02:12]} 18. Qf7 {[%clk 0:01:58]}  Rdg8 {[%clk 0:02:04]} 19. b4 {[%clk 0:01:48]}  Be8 {[%clk 0:02:01]} 20. Qe6 {[%clk 0:01:45]}  Nd8 {[%clk 0:01:55]} 21. Qb3 {[%clk 0:01:37]}  Bf7 {[%clk 0:01:55]} 22. c4 {[%clk 0:01:33]}  Ne6 {[%clk 0:01:49]} 23. Be3 {[%clk 0:01:30]}  g4 {[%clk 0:01:31]} 24. Nh4 {[%clk 0:01:25]}  Bh6 {[%clk 0:01:23]} 25. bxc5 {[%clk 0:01:10]}  Nxc5 {[%clk 0:01:18]} 26. Bxc5 {[%clk 0:01:10]}  dxc5 {[%clk 0:01:16]} 27. Nd5 {[%clk 0:01:08]}  Bxd5 {[%clk 0:00:59]} 28. exd5 {[%clk 0:01:07]}  Rd8 {[%clk 0:00:58]} 29. Rab1 {[%clk 0:01:03]}  Nc8 {[%clk 0:00:56]} 30. Nf5 {[%clk 0:00:56]}  Nd6 {[%clk 0:00:53]} 31. Nxd6 {[%clk 0:00:54]}  Rxd6 {[%clk 0:00:52]} 32. h4 {[%clk 0:00:52]}  Rh7 {[%clk 0:00:47]} 33. Be4 {[%clk 0:00:51]}  Rg7 {[%clk 0:00:41]} 34. Bf5 {[%clk 0:00:51]}  Qxa5 {[%clk 0:00:37]} 35. Be6 {[%clk 0:00:44]}  Rc7 {[%clk 0:00:35]} 36. Bf5 {[%clk 0:00:43]}  Qb4 {[%clk 0:00:23]} 37. Qc2 {[%clk 0:00:42]}  Qd2 {[%clk 0:00:22]} 38. Qa4 {[%clk 0:00:41]}  Rd8 {[%clk 0:00:19]} 39. Rb6 {[%clk 0:00:37]}  Be3 {[%clk 0:00:16]} 40. Kg2 {[%clk 0:00:35]}  Bd4 {[%clk 0:00:10]} 41. d6 {[%clk 0:00:33]}  Rg7 {[%clk 0:00:07]} 42. Qxa6 {[%clk 0:00:29]}  Qe2 {[%clk 0:00:06]} 43. Be4 {[%clk 0:00:27]}  f5 {[%clk 0:00:05]} 44. Rxb7+ {[%clk 0:00:27]} 1-0


[Site "https://www.chess.com"]

[Event "Titled Tuesday Blitz May 4 2021"]
[White "ValeriyGrinev"]
[Black "Torkkola, Henri"]
[BlackFideId "507660"]
[WhiteElo "2622"]
[BlackElo "2137"]
[Result "1-0"]
[Round "03"]
[TimeControl "180+1"]
[Date "2021.05.04"]
[WhiteClock "0:01:30"]
[BlackClock "0:00:02"]

1. c4 {[%clk 0:03:00]}  g6 {[%clk 0:03:00]} 2. Nc3 {[%clk 0:03:00]}  Bg7 {[%clk 0:03:00]} 3. d4 {[%clk 0:02:59]}  d6 {[%clk 0:03:00]} 4. e4 {[%clk 0:02:58]}  e5 {[%clk 0:03:00]} 5. Nf3 {[%clk 0:02:57]}  exd4 {[%clk 0:02:58]} 6. Nxd4 {[%clk 0:02:58]}  Ne7 {[%clk 0:02:58]} 7. h4 {[%clk 0:02:56]}  h5 {[%clk 0:02:55]} 8. Bg5 {[%clk 0:02:53]}  Nbc6 {[%clk 0:02:54]} 9. Nxc6 {[%clk 0:02:51]}  bxc6 {[%clk 0:02:54]} 10. c5 {[%clk 0:02:51]}  Be6 {[%clk 0:02:48]} 11. cxd6 {[%clk 0:02:51]}  cxd6 {[%clk 0:02:48]} 12. Qd2 {[%clk 0:02:47]}  Qc7 {[%clk 0:02:26]} 13. Rd1 {[%clk 0:02:44]}  d5 {[%clk 0:02:23]} 14. exd5 {[%clk 0:02:37]}  Nxd5 {[%clk 0:02:21]} 15. Nxd5 {[%clk 0:02:36]}  Bxd5 {[%clk 0:02:09]} 16. Qe3+ {[%clk 0:02:27]}  Qe5 {[%clk 0:02:09]} 17. b3 {[%clk 0:02:17]}  O-O {[%clk 0:02:06]} 18. Qxe5 {[%clk 0:02:12]}  Bxe5 {[%clk 0:02:07]} 19. f3 {[%clk 0:02:13]}  Bg3+ {[%clk 0:01:54]} 20. Kd2 {[%clk 0:02:12]}  Rfe8 {[%clk 0:01:52]} 21. Bd3 {[%clk 0:02:11]}  Re6 {[%clk 0:01:48]} 22. Kc2 {[%clk 0:02:05]}  Rae8 {[%clk 0:01:47]} 23. Rd2 {[%clk 0:01:58]}  f6 {[%clk 0:01:28]} 24. Bxg6 {[%clk 0:01:57]}  fxg5 {[%clk 0:01:23]} 25. Bxe8 {[%clk 0:01:57]}  Rxe8 {[%clk 0:01:23]} 26. hxg5 {[%clk 0:01:58]}  Bf7 {[%clk 0:01:09]} 27. Rhd1 {[%clk 0:01:49]}  Bf4 {[%clk 0:00:56]} 28. Rd8 {[%clk 0:01:47]}  Bxg5 {[%clk 0:00:53]} 29. Rxe8+ {[%clk 0:01:47]}  Bxe8 {[%clk 0:00:54]} 30. Kc3 {[%clk 0:01:47]}  Bf7 {[%clk 0:00:40]} 31. Rd7 {[%clk 0:01:46]}  Be3 {[%clk 0:00:34]} 32. a4 {[%clk 0:01:34]}  Kg7 {[%clk 0:00:28]} 33. b4 {[%clk 0:01:34]}  Bf2 {[%clk 0:00:19]} 34. Rc7 {[%clk 0:01:33]}  Be1+ {[%clk 0:00:16]} 35. Kd4 {[%clk 0:01:32]}  Bxb4 {[%clk 0:00:16]} 36. Rxa7 {[%clk 0:01:32]}  c5+ {[%clk 0:00:12]} 37. Ke4 {[%clk 0:01:31]}  Kf6 {[%clk 0:00:11]} 38. a5 {[%clk 0:01:30]}  Bg6+ {[%clk 0:00:11]} 39. Ke3 {[%clk 0:01:31]}  Bf7 {[%clk 0:00:07]} 40. a6 {[%clk 0:01:30]}  Bc4 {[%clk 0:00:07]} 41. Rc7 {[%clk 0:01:30]}  Bxa6 {[%clk 0:00:03]} 42. Rc6+ {[%clk 0:01:30]}  Kg5 {[%clk 0:00:03]} 43. Rxa6 {[%clk 0:01:31]}  Kh4 {[%clk 0:00:02]} 44. Kf4 {[%clk 0:01:30]} 1-0


[Site "https://www.chess.com"]

[Event "Titled Tuesday Blitz May 4 2021"]
[White "Van der Velden, Bram"]
[Black "Pile, Richard"]
[WhiteFideId "1015753"]
[BlackFideId "624110"]
[WhiteElo "2155"]
[BlackElo "2376"]
[Result "0-1"]
[Round "03"]
[TimeControl "180+1"]
[Date "2021.05.04"]
[WhiteClock "0:00:14"]
[BlackClock "0:00:16"]

1. d4 {[%clk 0:03:00]}  Nf6 {[%clk 0:02:21]} 2. c4 {[%clk 0:03:00]}  e6 {[%clk 0:02:21]} 3. Nc3 {[%clk 0:02:59]}  Bb4 {[%clk 0:02:21]} 4. Nf3 {[%clk 0:02:59]}  c5 {[%clk 0:02:20]} 5. g3 {[%clk 0:02:58]}  Nc6 {[%clk 0:02:19]} 6. d5 {[%clk 0:02:56]}  Ne7 {[%clk 0:02:18]} 7. d6 {[%clk 0:02:27]}  Bxc3+ {[%clk 0:02:15]} 8. bxc3 {[%clk 0:02:26]}  Nf5 {[%clk 0:02:15]} 9. Bf4 {[%clk 0:02:26]}  Qa5 {[%clk 0:02:13]} 10. Be5 {[%clk 0:02:24]}  Ne4 {[%clk 0:02:08]} 11. Qd3 {[%clk 0:02:15]}  Nfxd6 {[%clk 0:02:07]} 12. Bxg7 {[%clk 0:02:04]}  Rg8 {[%clk 0:02:05]} 13. Be5 {[%clk 0:02:04]}  f5 {[%clk 0:01:57]} 14. Bg2 {[%clk 0:01:59]}  Nf7 {[%clk 0:01:57]} 15. Bf4 {[%clk 0:01:56]}  Qxc3+ {[%clk 0:01:43]} 16. Qxc3 {[%clk 0:01:41]}  Nxc3 {[%clk 0:01:44]} 17. Ne5 {[%clk 0:01:36]}  Ne4 {[%clk 0:01:22]} 18. O-O {[%clk 0:01:31]}  b6 {[%clk 0:01:10]} 19. Bf3 {[%clk 0:01:25]}  Nxe5 {[%clk 0:01:09]} 20. Bxe5 {[%clk 0:01:25]}  Bb7 {[%clk 0:01:09]} 21. Bh5+ {[%clk 0:01:25]}  Ke7 {[%clk 0:01:09]} 22. f3 {[%clk 0:01:23]}  Nd6 {[%clk 0:00:58]} 23. Bf4 {[%clk 0:01:04]}  Nxc4 {[%clk 0:00:55]} 24. Rac1 {[%clk 0:01:04]}  Na5 {[%clk 0:00:49]} 25. e4 {[%clk 0:00:50]}  fxe4 {[%clk 0:00:43]} 26. fxe4 {[%clk 0:00:51]}  Bxe4 {[%clk 0:00:43]} 27. Rce1 {[%clk 0:00:45]}  d5 {[%clk 0:00:43]} 28. Bh6 {[%clk 0:00:44]}  Rg6 {[%clk 0:00:28]} 29. Bxg6 {[%clk 0:00:41]}  Bxg6 {[%clk 0:00:24]} 30. Bg5+ {[%clk 0:00:41]}  Kd7 {[%clk 0:00:24]} 31. h4 {[%clk 0:00:36]}  Nc6 {[%clk 0:00:18]} 32. g4 {[%clk 0:00:33]}  h5 {[%clk 0:00:18]} 33. Rf6 {[%clk 0:00:32]}  Rg8 {[%clk 0:00:18]} 34. gxh5 {[%clk 0:00:32]}  Bxh5 {[%clk 0:00:18]} 35. Rh6 {[%clk 0:00:32]}  Bg4 {[%clk 0:00:18]} 36. Rh7+ {[%clk 0:00:32]}  Kc8 {[%clk 0:00:18]} 37. Kh2 {[%clk 0:00:26]}  Nd4 {[%clk 0:00:18]} 38. Rf1 {[%clk 0:00:20]}  Bf5 {[%clk 0:00:17]} 39. Bf4 {[%clk 0:00:18]}  c4 {[%clk 0:00:18]} 40. Rxa7 {[%clk 0:00:17]}  Rg4 {[%clk 0:00:17]} 41. Bd6 {[%clk 0:00:14]}  Nb5 {[%clk 0:00:16]} 0-1


[Site "https://www.chess.com"]

[Event "Titled Tuesday Blitz May 4 2021"]
[White "Vargas, Gabriela"]
[Black "Elgersma, Onno"]
[WhiteFideId "3700860"]
[BlackFideId "1053531"]
[WhiteElo "2116"]
[BlackElo "2475"]
[Result "0-1"]
[Round "03"]
[TimeControl "180+1"]
[Date "2021.05.04"]
[WhiteClock "0:00:18"]
[BlackClock "0:00:23"]

1. d4 {[%clk 0:03:00]}  d5 {[%clk 0:02:52]} 2. Nf3 {[%clk 0:03:00]}  e6 {[%clk 0:02:52]} 3. Bg5 {[%clk 0:03:00]}  Nf6 {[%clk 0:02:53]} 4. Nbd2 {[%clk 0:02:59]}  c5 {[%clk 0:02:53]} 5. c3 {[%clk 0:02:59]}  Nc6 {[%clk 0:02:53]} 6. e3 {[%clk 0:03:00]}  Bd6 {[%clk 0:02:54]} 7. Bd3 {[%clk 0:02:59]}  O-O {[%clk 0:02:53]} 8. O-O {[%clk 0:02:58]}  e5 {[%clk 0:02:54]} 9. dxc5 {[%clk 0:02:48]}  Bxc5 {[%clk 0:02:44]} 10. e4 {[%clk 0:02:46]}  dxe4 {[%clk 0:02:19]} 11. Nxe4 {[%clk 0:02:47]}  Be7 {[%clk 0:02:19]} 12. Qe2 {[%clk 0:02:29]}  Nd5 {[%clk 0:02:04]} 13. Bxe7 {[%clk 0:02:28]}  Qxe7 {[%clk 0:02:04]} 14. Rfe1 {[%clk 0:01:47]}  Nf4 {[%clk 0:01:55]} 15. Qc2 {[%clk 0:01:44]}  Nxd3 {[%clk 0:01:53]} 16. Qxd3 {[%clk 0:01:45]}  Kh8 {[%clk 0:01:29]} 17. Qd6 {[%clk 0:01:32]}  Qxd6 {[%clk 0:01:05]} 18. Nxd6 {[%clk 0:01:33]}  f6 {[%clk 0:01:06]} 19. Rad1 {[%clk 0:01:19]}  Bg4 {[%clk 0:01:04]} 20. h3 {[%clk 0:01:14]}  Bxf3 {[%clk 0:00:49]} 21. gxf3 {[%clk 0:01:15]}  Rab8 {[%clk 0:00:49]} 22. Rd2 {[%clk 0:01:05]}  Kg8 {[%clk 0:00:49]} 23. Red1 {[%clk 0:01:05]}  Rfd8 {[%clk 0:00:49]} 24. b4 {[%clk 0:00:58]}  a6 {[%clk 0:00:46]} 25. a4 {[%clk 0:00:57]}  Kf8 {[%clk 0:00:39]} 26. Kg2 {[%clk 0:00:54]}  Ne7 {[%clk 0:00:35]} 27. b5 {[%clk 0:00:43]}  axb5 {[%clk 0:00:34]} 28. axb5 {[%clk 0:00:40]}  Ng6 {[%clk 0:00:28]} 29. c4 {[%clk 0:00:33]}  Nf4+ {[%clk 0:00:27]} 30. Kh2 {[%clk 0:00:33]}  Ne6 {[%clk 0:00:28]} 31. b6 {[%clk 0:00:20]}  Nd4 {[%clk 0:00:24]} 32. Kg2 {[%clk 0:00:18]}  Rxd6 {[%clk 0:00:23]} 0-1


[Site "https://www.chess.com"]

[Event "Titled Tuesday Blitz May 4 2021"]
[White "Veiga, Emerson de Sousa"]
[Black "Laxman, R.R."]
[WhiteFideId "2151898"]
[BlackFideId "5005361"]
[WhiteElo "2034"]
[BlackElo "2476"]
[Result "0-1"]
[Round "03"]
[TimeControl "180+1"]
[Date "2021.05.04"]
[WhiteClock "0:00:02"]
[BlackClock "0:02:00"]

1. e4 {[%clk 0:02:59]}  e5 {[%clk 0:02:58]} 2. Bc4 {[%clk 0:02:59]}  Nf6 {[%clk 0:02:57]} 3. d3 {[%clk 0:02:58]}  c6 {[%clk 0:02:57]} 4. Nf3 {[%clk 0:02:57]}  d5 {[%clk 0:02:57]} 5. Bb3 {[%clk 0:02:57]}  Bd6 {[%clk 0:02:57]} 6. O-O {[%clk 0:02:54]}  O-O {[%clk 0:02:56]} 7. Nc3 {[%clk 0:02:53]}  dxe4 {[%clk 0:02:51]} 8. dxe4 {[%clk 0:02:51]}  Na6 {[%clk 0:02:47]} 9. Be3 {[%clk 0:02:44]}  Qe7 {[%clk 0:02:45]} 10. h3 {[%clk 0:02:35]}  Nc5 {[%clk 0:02:44]} 11. Bxc5 {[%clk 0:02:33]}  Bxc5 {[%clk 0:02:44]} 12. Qe2 {[%clk 0:02:31]}  b5 {[%clk 0:02:43]} 13. a3 {[%clk 0:02:27]}  a5 {[%clk 0:02:42]} 14. Rfd1 {[%clk 0:02:25]}  a4 {[%clk 0:02:41]} 15. Ba2 {[%clk 0:02:23]}  Nh5 {[%clk 0:02:41]} 16. Nh2 {[%clk 0:01:56]}  Nf4 {[%clk 0:02:39]} 17. Qf3 {[%clk 0:01:53]}  Qg5 {[%clk 0:02:39]} 18. Kh1 {[%clk 0:01:46]}  Be6 {[%clk 0:02:39]} 19. Nf1 {[%clk 0:01:39]}  Kh8 {[%clk 0:02:35]} 20. Ng3 {[%clk 0:01:37]}  Bxa2 {[%clk 0:02:31]} 21. Rxa2 {[%clk 0:01:36]}  g6 {[%clk 0:02:32]} 22. Nce2 {[%clk 0:01:25]}  Rad8 {[%clk 0:02:29]} 23. Raa1 {[%clk 0:01:24]}  f5 {[%clk 0:02:27]} 24. exf5 {[%clk 0:01:22]}  gxf5 {[%clk 0:02:25]} 25. Nxf4 {[%clk 0:01:09]}  Qxf4 {[%clk 0:02:26]} 26. Qxf4 {[%clk 0:00:48]}  exf4 {[%clk 0:02:27]} 27. Ne2 {[%clk 0:00:32]}  Bxf2 {[%clk 0:02:23]} 28. Nxf4 {[%clk 0:00:32]}  Rfe8 {[%clk 0:02:22]} 29. Rf1 {[%clk 0:00:21]}  Bd4 {[%clk 0:02:21]} 30. c3 {[%clk 0:00:22]}  Be5 {[%clk 0:02:21]} 31. Nh5 {[%clk 0:00:11]}  Rf8 {[%clk 0:02:13]} 32. Rad1 {[%clk 0:00:10]}  f4 {[%clk 0:02:12]} 33. Rfe1 {[%clk 0:00:08]}  Rxd1 {[%clk 0:02:01]} 34. Rxd1 {[%clk 0:00:09]}  h6 {[%clk 0:02:01]} 35. g4 {[%clk 0:00:08]}  fxg3 {[%clk 0:02:01]} 36. Re1 {[%clk 0:00:09]}  Rf5 {[%clk 0:02:01]} 37. Kg2 {[%clk 0:00:02]}  Rxh5 {[%clk 0:02:00]} 0-1


[Site "https://www.chess.com"]

[Event "Titled Tuesday Blitz May 4 2021"]
[White "Von Buelow, Georg"]
[Black "Rozhkov, Viacheslav"]
[WhiteFideId "4620658"]
[BlackFideId "4181484"]
[WhiteElo "2190"]
[BlackElo "2324"]
[Result "0-1"]
[Round "03"]
[TimeControl "180+1"]
[Date "2021.05.04"]
[WhiteClock "0:00:02"]
[BlackClock "0:00:12"]

1. e4 {[%clk 0:03:00]}  c5 {[%clk 0:02:59]} 2. Nf3 {[%clk 0:02:59]}  d6 {[%clk 0:02:59]} 3. d4 {[%clk 0:03:00]}  cxd4 {[%clk 0:02:59]} 4. Nxd4 {[%clk 0:03:00]}  Nf6 {[%clk 0:03:00]} 5. Nc3 {[%clk 0:03:01]}  Nc6 {[%clk 0:03:00]} 6. Bg5 {[%clk 0:03:00]}  Bd7 {[%clk 0:02:59]} 7. Qd2 {[%clk 0:02:47]}  Rc8 {[%clk 0:02:58]} 8. f4 {[%clk 0:02:29]}  h6 {[%clk 0:02:20]} 9. Bxf6 {[%clk 0:02:24]}  gxf6 {[%clk 0:02:20]} 10. Nf5 {[%clk 0:02:24]}  Qa5 {[%clk 0:02:07]} 11. Bd3 {[%clk 0:02:19]}  e6 {[%clk 0:02:02]} 12. Ne3 {[%clk 0:02:15]}  h5 {[%clk 0:01:57]} 13. O-O {[%clk 0:01:50]}  Rg8 {[%clk 0:01:54]} 14. Kh1 {[%clk 0:01:49]}  Be7 {[%clk 0:01:41]} 15. a3 {[%clk 0:01:44]}  h4 {[%clk 0:01:38]} 16. Rae1 {[%clk 0:01:22]}  h3 {[%clk 0:01:36]} 17. g3 {[%clk 0:01:22]}  Qh5 {[%clk 0:01:27]} 18. Be2 {[%clk 0:01:17]}  Qh7 {[%clk 0:01:20]} 19. Bf3 {[%clk 0:01:17]}  Nb8 {[%clk 0:00:53]} 20. Qe2 {[%clk 0:01:00]}  Bc6 {[%clk 0:00:53]} 21. Rd1 {[%clk 0:00:49]}  Nd7 {[%clk 0:00:52]} 22. Ned5 {[%clk 0:00:41]}  Bd8 {[%clk 0:00:38]} 23. Rfe1 {[%clk 0:00:39]}  Kf8 {[%clk 0:00:35]} 24. Ne3 {[%clk 0:00:30]}  Nc5 {[%clk 0:00:34]} 25. Nc4 {[%clk 0:00:19]}  Be7 {[%clk 0:00:25]} 26. Nxd6 {[%clk 0:00:19]}  Rd8 {[%clk 0:00:20]} 27. e5 {[%clk 0:00:12]}  Bxf3+ {[%clk 0:00:18]} 28. Qxf3 {[%clk 0:00:12]}  fxe5 {[%clk 0:00:18]} 29. fxe5 {[%clk 0:00:11]}  Bxd6 {[%clk 0:00:17]} 30. Rxd6 {[%clk 0:00:09]}  Rxd6 {[%clk 0:00:17]} 31. exd6 {[%clk 0:00:09]}  Qxc2 {[%clk 0:00:17]} 32. Rf1 {[%clk 0:00:09]}  f5 {[%clk 0:00:15]} 33. Rf2 {[%clk 0:00:06]}  Qc1+ {[%clk 0:00:14]} 34. Rf1 {[%clk 0:00:06]}  Qxb2 {[%clk 0:00:14]} 35. d7 {[%clk 0:00:04]}  Nxd7 {[%clk 0:00:13]} 36. Qd3 {[%clk 0:00:02]}  Qg2# {[%clk 0:00:12]} 0-1


[Site "https://www.chess.com"]

[Event "Titled Tuesday Blitz May 4 2021"]
[White "Wagh Suyog"]
[Black "Spencenzug"]
[WhiteFideId "25071688"]
[WhiteElo "2219"]
[BlackElo "2321"]
[Result "1-0"]
[Round "03"]
[TimeControl "180+1"]
[Date "2021.05.04"]
[WhiteClock "0:01:09"]
[BlackClock "0:00:03"]

1. c4 {[%clk 0:02:59]}  e5 {[%clk 0:02:59]} 2. Nc3 {[%clk 0:02:59]}  Bb4 {[%clk 0:02:59]} 3. Nd5 {[%clk 0:02:59]}  Bc5 {[%clk 0:02:58]} 4. Nf3 {[%clk 0:02:59]}  d6 {[%clk 0:02:57]} 5. e3 {[%clk 0:02:58]}  c6 {[%clk 0:02:41]} 6. d4 {[%clk 0:02:47]}  cxd5 {[%clk 0:02:15]} 7. dxc5 {[%clk 0:02:46]}  dxc5 {[%clk 0:02:16]} 8. cxd5 {[%clk 0:02:45]}  Nd7 {[%clk 0:02:09]} 9. e4 {[%clk 0:02:26]}  Ngf6 {[%clk 0:02:09]} 10. Bd3 {[%clk 0:02:27]}  h6 {[%clk 0:02:03]} 11. g4 {[%clk 0:02:21]}  Nxg4 {[%clk 0:01:47]} 12. Rg1 {[%clk 0:02:19]}  Ngf6 {[%clk 0:01:25]} 13. Rxg7 {[%clk 0:02:19]}  Kf8 {[%clk 0:01:14]} 14. Rg1 {[%clk 0:02:16]}  c4 {[%clk 0:01:01]} 15. Bc2 {[%clk 0:02:10]}  Nc5 {[%clk 0:00:50]} 16. Qe2 {[%clk 0:02:03]}  Bg4 {[%clk 0:00:44]} 17. Bd2 {[%clk 0:01:58]}  Rc8 {[%clk 0:00:38]} 18. h3 {[%clk 0:01:56]}  Bh5 {[%clk 0:00:35]} 19. Qe3 {[%clk 0:01:56]}  Bxf3 {[%clk 0:00:22]} 20. Qxf3 {[%clk 0:01:55]}  Nd3+ {[%clk 0:00:20]} 21. Bxd3 {[%clk 0:01:55]}  cxd3 {[%clk 0:00:21]} 22. Qxd3 {[%clk 0:01:46]}  Qb6 {[%clk 0:00:22]} 23. Bc3 {[%clk 0:01:44]}  Nh5 {[%clk 0:00:20]} 24. Bxe5 {[%clk 0:01:38]}  Qa5+ {[%clk 0:00:16]} 25. Bc3 {[%clk 0:01:35]}  Rxc3 {[%clk 0:00:14]} 26. Qxc3 {[%clk 0:01:36]}  Qxc3+ {[%clk 0:00:12]} 27. bxc3 {[%clk 0:01:37]}  Nf4 {[%clk 0:00:12]} 28. Rg3 {[%clk 0:01:32]}  Ke7 {[%clk 0:00:12]} 29. Kd2 {[%clk 0:01:31]}  Rc8 {[%clk 0:00:12]} 30. Rb1 {[%clk 0:01:30]}  b6 {[%clk 0:00:12]} 31. Rb4 {[%clk 0:01:26]}  Rc7 {[%clk 0:00:11]} 32. Rd4 {[%clk 0:01:26]}  Rd7 {[%clk 0:00:10]} 33. c4 {[%clk 0:01:25]}  Kd6 {[%clk 0:00:10]} 34. Ke3 {[%clk 0:01:17]}  Ke5 {[%clk 0:00:10]} 35. Rg4 {[%clk 0:01:12]}  Nxh3 {[%clk 0:00:10]} 36. f4+ {[%clk 0:01:11]}  Kf6 {[%clk 0:00:08]} 37. Rh4 {[%clk 0:01:09]}  Ng1 {[%clk 0:00:03]} 38. Rxh6+ {[%clk 0:01:09]}  Kg7 {[%clk 0:00:03]} 39. Rh1 {[%clk 0:01:09]} 1-0


[Site "https://www.chess.com"]

[Event "Titled Tuesday Blitz May 4 2021"]
[White "Wagner, Dennis"]
[Black "Angel_Hranitel_37"]
[WhiteFideId "24650684"]
[WhiteElo "2355"]
[BlackElo "2516"]
[Result "0-1"]
[Round "03"]
[TimeControl "180+1"]
[Date "2021.05.04"]
[WhiteClock "0:00:04"]
[BlackClock "0:00:28"]

1. e4 {[%clk 0:03:00]}  c5 {[%clk 0:02:59]} 2. Nf3 {[%clk 0:02:59]}  e6 {[%clk 0:02:59]} 3. d4 {[%clk 0:02:59]}  cxd4 {[%clk 0:03:00]} 4. Nxd4 {[%clk 0:02:56]}  Nf6 {[%clk 0:03:01]} 5. Nc3 {[%clk 0:02:55]}  Nc6 {[%clk 0:03:01]} 6. Qd3 {[%clk 0:02:55]}  d5 {[%clk 0:03:00]} 7. exd5 {[%clk 0:02:51]}  Nb4 {[%clk 0:03:01]} 8. Qg3 {[%clk 0:02:50]}  Nbxd5 {[%clk 0:02:55]} 9. Nxd5 {[%clk 0:02:42]}  Nxd5 {[%clk 0:02:45]} 10. Bb5+ {[%clk 0:02:32]}  Bd7 {[%clk 0:02:45]} 11. Bxd7+ {[%clk 0:02:30]}  Qxd7 {[%clk 0:02:46]} 12. O-O {[%clk 0:02:31]}  Bd6 {[%clk 0:02:42]} 13. Qxg7 {[%clk 0:02:21]}  O-O-O {[%clk 0:02:43]} 14. Qg4 {[%clk 0:02:13]}  h5 {[%clk 0:02:32]} 15. Qe2 {[%clk 0:02:05]}  h4 {[%clk 0:02:30]} 16. Nb5 {[%clk 0:02:00]}  Rdg8 {[%clk 0:02:02]} 17. Rd1 {[%clk 0:01:34]}  Rg6 {[%clk 0:00:52]} 18. Nxd6+ {[%clk 0:00:27]}  Qxd6 {[%clk 0:00:52]} 19. Bd2 {[%clk 0:00:12]}  Rhg8 {[%clk 0:00:52]} 20. g3 {[%clk 0:00:10]}  hxg3 {[%clk 0:00:51]} 21. fxg3 {[%clk 0:00:10]}  Rxg3+ {[%clk 0:00:50]} 22. Kh1 {[%clk 0:00:06]}  Ne3 {[%clk 0:00:29]} 23. Bxe3 {[%clk 0:00:04]}  Qc6+ {[%clk 0:00:28]} 0-1


[Site "https://www.chess.com"]

[Event "Titled Tuesday Blitz May 4 2021"]
[White "WelshTiger"]
[Black "Sahil, Tickoo"]
[BlackFideId "5019710"]
[WhiteElo "2482"]
[BlackElo "2099"]
[Result "1-0"]
[Round "03"]
[TimeControl "180+1"]
[Date "2021.05.04"]
[WhiteClock "0:02:04"]
[BlackClock "0:02:23"]

1. e4 {[%clk 0:03:00]}  c5 {[%clk 0:03:00]} 2. Nf3 {[%clk 0:03:00]}  d6 {[%clk 0:03:00]} 3. d4 {[%clk 0:02:58]}  cxd4 {[%clk 0:03:01]} 4. Nxd4 {[%clk 0:02:58]}  Nf6 {[%clk 0:03:02]} 5. Nc3 {[%clk 0:02:58]}  a6 {[%clk 0:03:03]} 6. h3 {[%clk 0:02:56]}  e5 {[%clk 0:03:02]} 7. Nde2 {[%clk 0:02:55]}  h5 {[%clk 0:03:03]} 8. Bg5 {[%clk 0:02:54]}  Ke7 {[%clk 0:03:02]} 9. Nd5+ {[%clk 0:02:51]}  Ke8 {[%clk 0:02:56]} 10. Nec3 {[%clk 0:02:35]}  Nbd7 {[%clk 0:02:46]} 11. Be2 {[%clk 0:02:23]}  Be7 {[%clk 0:02:43]} 12. Nxe7 {[%clk 0:02:22]}  Qxe7 {[%clk 0:02:43]} 13. O-O {[%clk 0:02:18]}  Qe6 {[%clk 0:02:34]} 14. b3 {[%clk 0:02:09]}  b5 {[%clk 0:02:33]} 15. a4 {[%clk 0:02:09]}  Bb7 {[%clk 0:02:21]} 16. axb5 {[%clk 0:02:06]}  axb5 {[%clk 0:02:22]} 17. Rxa8+ {[%clk 0:02:03]}  Bxa8 {[%clk 0:02:23]} 18. Nxb5 {[%clk 0:02:04]} 1-0


[Site "https://www.chess.com"]

[Event "Titled Tuesday Blitz May 4 2021"]
[White "Winslow, Elliott"]
[Black "Seul, Georg"]
[WhiteFideId "2002523"]
[BlackFideId "4601653"]
[WhiteElo "2245"]
[BlackElo "2332"]
[Result "0-1"]
[Round "03"]
[TimeControl "180+1"]
[Date "2021.05.04"]
[WhiteClock "0:01:45"]
[BlackClock "0:01:50"]

1. e4 {[%clk 0:03:00]}  e5 {[%clk 0:02:59]} 2. Nf3 {[%clk 0:02:59]}  Nc6 {[%clk 0:02:58]} 3. Bb5 {[%clk 0:03:00]}  a6 {[%clk 0:02:58]} 4. Ba4 {[%clk 0:03:00]}  Nf6 {[%clk 0:02:57]} 5. O-O {[%clk 0:03:01]}  Be7 {[%clk 0:02:57]} 6. Bxc6 {[%clk 0:03:00]}  dxc6 {[%clk 0:02:57]} 7. d3 {[%clk 0:03:00]}  Nd7 {[%clk 0:02:56]} 8. Nbd2 {[%clk 0:02:58]}  O-O {[%clk 0:02:51]} 9. Nc4 {[%clk 0:02:55]}  f6 {[%clk 0:02:45]} 10. Nh4 {[%clk 0:02:53]}  Nc5 {[%clk 0:02:41]} 11. Kh1 {[%clk 0:02:44]}  Ne6 {[%clk 0:02:23]} 12. Nf5 {[%clk 0:02:34]}  c5 {[%clk 0:02:18]} 13. g3 {[%clk 0:02:27]}  Kh8 {[%clk 0:02:11]} 14. Nce3 {[%clk 0:02:25]}  Nd4 {[%clk 0:02:04]} 15. c3 {[%clk 0:02:06]}  Nxf5 {[%clk 0:02:02]} 16. Nxf5 {[%clk 0:02:06]}  Bxf5 {[%clk 0:02:00]} 17. exf5 {[%clk 0:02:05]}  Qd5+ {[%clk 0:02:00]} 18. f3 {[%clk 0:02:04]}  Rad8 {[%clk 0:01:57]} 19. Be3 {[%clk 0:01:45]}  Qxd3 {[%clk 0:01:53]} 20. Qe1 {[%clk 0:01:45]}  Qxf5 {[%clk 0:01:50]} 0-1


[Site "https://www.chess.com"]